fUST/lending_fUST_20240528
["ID","MTS","AMOUNT","RATE_DAILY","PERIOD"]
[328116919,1716886246688,-500.0,0.00019178,2]
[328116920,1716886246697,-500.0,0.00019178,2]
[328116921,1716886246706,-500.0,0.00019178,2]
[328116922,1716886246715,-500.0,0.00019178,2]
[328116923,1716886246724,-500.0,0.00019178,2]
[328116924,1716886246733,-578.58684241,0.00019178,2]
[328116925,1716886246742,-500.0,0.00019178,2]
[328116926,1716886246753,-500.0,0.00019178,2]
[328116927,1716886246762,-500.0,0.00019178,2]
[328116928,1716886246771,-500.0,0.00019178,2]
[328116929,1716886246780,-500.0,0.00019178,2]
[328116930,1716886246790,-500.0,0.00019178,2]
[328116931,1716886246800,-500.0,0.00019178,2]
[328116932,1716886246809,-500.0,0.00019178,2]
[328116933,1716886246819,-500.0,0.00019178,2]
[328116934,1716886246828,-500.0,0.00019178,2]
[328116935,1716886246837,-500.0,0.00019178,2]
[328116936,1716886246845,-500.0,0.00019178,2]
[328116937,1716886246854,-500.0,0.00019178,2]
[328116938,1716886246863,-500.0,0.00019178,2]
[328116939,1716886246872,-500.0,0.00019178,2]
[328116940,1716886246883,-500.0,0.00019178,2]
[328116941,1716886246892,-500.0,0.00019178,2]
[328116942,1716886246901,-500.0,0.00019178,2]
[328116943,1716886246910,-500.0,0.00019178,2]
[328116944,1716886246919,-500.0,0.00019178,2]
[328116945,1716886246928,-500.0,0.00019178,2]
[328116946,1716886246938,-500.0,0.00019178,2]
[328116947,1716886246949,-500.0,0.00019178,2]
[328116948,1716886246960,-500.0,0.00019178,2]
[328116949,1716886246969,-500.0,0.00019178,2]
[328116950,1716886246978,-258.18643222,0.00019178,2]
[328116951,1716886246988,-641.01144387,0.00019178,2]
[328116952,1716886246997,-581.40438527,0.00019178,2]
[328116953,1716886247006,-581.40438527,0.00019178,2]
[328116954,1716886247018,-581.40438527,0.00019178,2]
[328116955,1716886247026,-581.40438527,0.00019178,2]
[328116956,1716886247035,-581.40438527,0.00019178,2]
[328116957,1716886247044,-581.40438527,0.00019178,2]
[328116958,1716886247053,-581.40438527,0.00019178,2]
[328116959,1716886247062,-581.40438527,0.00019178,2]
[328116960,1716886247071,-581.40438527,0.00019178,2]
[328116961,1716886247080,-581.40438527,0.00019178,2]
[328116962,1716886247089,-581.40438527,0.00019178,2]
[328116963,1716886247098,-581.40438527,0.00019178,2]
[328116964,1716886247107,-581.40438527,0.00019178,2]
[328116965,1716886247116,-581.40438527,0.00019178,2]
[328116966,1716886247125,-581.40438527,0.00019178,2]
[328116967,1716886247134,-581.40438527,0.00019178,2]
[328116968,1716886247143,-581.40438527,0.00019178,2]
[328116969,1716886247152,-581.40438527,0.00019178,2]
[328116970,1716886247161,-581.40438527,0.00019178,2]
[328116971,1716886247170,-581.40438527,0.00019178,2]
[328116972,1716886247179,-581.40438527,0.00019178,2]
[328116973,1716886247188,-581.40438527,0.00019178,2]
[328116974,1716886247197,-581.40438527,0.00019178,2]
[328116975,1716886247206,-581.40438527,0.00019178,2]
[328116976,1716886247217,-581.40438527,0.00019178,2]
[328116977,1716886247226,-581.40438527,0.00019178,2]
[328116978,1716886247235,-581.40438527,0.00019178,2]
[328116979,1716886247244,-581.40438527,0.00019178,2]
[328116980,1716886247253,-581.40438527,0.00019178,2]
[328116981,1716886247262,-581.40438527,0.00019178,2]
[328116982,1716886247271,-581.40438527,0.00019178,2]
[328116983,1716886247280,-581.40438527,0.00019178,2]
[328116984,1716886247289,-581.40438527,0.00019178,2]
[328116985,1716886247299,-581.40438527,0.00019178,2]
[328116986,1716886247309,-581.40438527,0.00019178,2]
[328116987,1716886247318,-581.40438527,0.00019178,2]
[328116988,1716886247327,-581.40438527,0.00019178,2]
[328116989,1716886247336,-581.40438527,0.00019178,2]
[328116990,1716886247345,-581.40438527,0.00019178,2]
[328116991,1716886247354,-581.40438527,0.00019178,2]
[328116992,1716886247364,-581.40438527,0.00019178,2]
[328116993,1716886247373,-581.40438527,0.00019178,2]
[328116994,1716886247382,-581.40438527,0.00019178,2]
[328116995,1716886247391,-581.40438527,0.00019178,2]
[328116996,1716886247401,-581.40438527,0.00019178,2]
[328116997,1716886247411,-500.0,0.00019178,2]
[328116998,1716886247420,-500.0,0.00019178,2]
[328116999,1716886247429,-500.0,0.00019178,2]
[328117000,1716886247438,-245.90332018,0.00019178,2]
[328117001,1716886247447,-500.0,0.00019178,2]
[328117002,1716886247457,-500.0,0.00019178,2]
[328117003,1716886247466,-500.0,0.00019178,2]
[328117004,1716886247475,-15286.17991816,0.00019178,2]
[328117005,1716886247484,-15286.17991816,0.00019178,2]
[328117006,1716886247494,-15286.17991816,0.00019178,2]
[328117007,1716886247506,-5161.88665538,0.00019178,2]
[328117008,1716886257128,2475.29617976,0.00019076,7]
[328117009,1716886257156,5884.00687912,0.00019076,7]
[328117010,1716886293107,2116.06612271,0.00019178,7]
[328117012,1716886351111,1058.03306136,0.00019178,7]
[328117013,1716886372481,175.82731346,9.999e-05,2]
[328117014,1716886412657,529.01653068,0.00019178,7]
[328117015,1716886473028,264.50826534,0.00019178,7]
[328117017,1716886532671,264.50826533,0.00019178,7]
[328117026,1716887135141,-158.48020615,0.00017999,2]
[328117027,1716887202103,-154.93802479,0.00017999,2]
[328117028,1716887202126,-47.43121699,0.00018,2]
[328117029,1716887231111,-159.99361612,0.00017999,2]
[328117032,1716887254103,-71.1410787,0.00017999,2]
[328117033,1716887254122,-896.7707273,0.00018894,2]
[328117034,1716887254145,-274.92390662,0.00018895,2]
[328117035,1716887254166,-216.55823019,0.000189,2]
[328117096,1716887432223,-896.7707273,0.00018885,2]
[328117099,1716887432233,-724.4,0.00018886,3]
[328117139,1716887432438,-724.4,0.00018886,2]
[328117141,1716887432448,-73.26038665,0.000189,2]
[328117236,1716887441806,-507.88399194,0.000189,2]
[328117238,1716887441815,-935.8803132,0.00018978,2]
[328117240,1716887441824,-162.7360072,0.00019014,2]
[328117241,1716887441834,-620.00128973,0.00019015,2]
[328117242,1716887441843,-155.20119616,0.00019075,2]
[328117243,1716887441852,-176.521726,0.00019075,2]
[328117244,1716887441861,-161.01767511,0.00019076,2]
[328117245,1716887441871,-864.42712458,0.00019076,2]
[328117246,1716887441880,-3757.0199258,0.00019077,2]
[328117247,1716887441890,-38857.77443002,0.00019077,2]
[328117262,1716887443437,208.36486865,9.9e-05,2]
[328117263,1716887443459,65.00849366,9.9e-05,2]
[328117264,1716887443533,-17942.62098861,0.00019077,2]
[328117278,1716887450690,266.61015013,0.00019076,7]
[328117279,1716887451663,205.92461097,9.9e-05,2]
[328117280,1716887451699,67.44875134,9.9e-05,2]
[328117281,1716887453700,993.55336102,0.00019075,7]
[328117309,1716888632361,-454.93399803,0.00018595,2]
[328117311,1716888632373,-390.04834444,0.00018595,2]
[328117313,1716888632382,-415.18116868,0.00018693,2]
[328117415,1716888638442,-481.58955862,0.00018693,2]
[328117416,1716888638452,-3801.54047138,0.00018694,2]
[328117451,1716888646602,-47974.10366789,0.00018694,2]
[328117452,1716888672117,246.55113061,9.999e-05,2]
[328117453,1716888672137,151.0,9.999e-05,2]
[328117454,1716888672159,124.42210704,9.999e-05,2]
[328117463,1716888735307,120.80961359,9.9e-05,2]
[328117464,1716888735339,107.82455738,9.9e-05,2]
[328117469,1716889628136,-154.92253873,0.00018693,2]
[328117581,1716889835084,-108.26684966,0.00018693,2]
[328117583,1716889835095,-1711.13315034,0.00018694,2]
[328117600,1716889838612,-625.20235871,0.00018694,2]
[328117602,1716889838624,-3595.18995622,0.00018694,2]
[328117604,1716889838634,-2141.732,0.00018695,2]
[328117606,1716889838644,-2141.733,0.00018695,2]
[328117608,1716889838653,-2141.733,0.00018695,2]
[328117609,1716889838662,-2141.733,0.00018695,2]
[328117610,1716889838672,-1217.49506536,0.00018695,2]
[328117611,1716889838684,-924.23793464,0.00018695,2]
[328117612,1716889838694,-603.7,0.00018787,3]
[328117613,1716889838703,-603.7,0.00018787,2]
[328117614,1716889838713,-5235.072,0.00018886,2]
[328117615,1716889838722,-1229.80653536,0.00018886,2]
[328117628,1716889842066,-4005.26546464,0.00018886,2]
[328117629,1716889842076,-2294.63453536,0.00018886,2]
[328117630,1716889842088,-1402.45,0.00018886,2]
[328117648,1716889843873,-1537.98846464,0.00018886,2]
[328117649,1716889843883,-5235.072,0.00018886,2]
[328117650,1716889843893,-5235.072,0.00018886,2]
[328117651,1716889843903,-338.58932796,0.000189,2]
[328117652,1716889843912,-370.67394407,0.000189,2]
[328117653,1716889843921,-370.67394403,0.00018945,2]
[328117654,1716889843932,-497.0,0.00018954,2]
[328117655,1716889843941,-150.0,0.00018954,2]
[328117656,1716889843949,-150.0,0.00018954,2]
[328117657,1716889843958,-150.777,0.00018954,2]
[328117658,1716889843968,-620.0000673,0.00018968,2]
[328117659,1716889843977,-370.67394403,0.00018989,2]
[328117660,1716889843986,-162.7360072,0.00019,2]
[328117661,1716889843996,-370.67394403,0.00019034,2]
[328117662,1716889844006,-286.04727348,0.00019077,2]
[328117663,1716889844016,-370.67394403,0.00019078,2]
[328117664,1716889844026,-163.73354267,0.00019078,2]
[328117665,1716889844035,-14876.99361195,0.00019078,2]
[328117668,1716889844572,-3561.33058698,0.00019078,2]
[328117697,1716889866022,163.96667753,9.999e-05,2]
[328117698,1716889866043,154.92253873,9.999e-05,2]
[328117699,1716889866076,1179.5346579,9.999e-05,2]
[328117703,1716889871049,266.61015013,0.00019176,7]
[328117705,1716889874452,154.95351395,9.999e-05,2]
[328117706,1716889879317,1947.58872333,9.999e-05,2]
[328117714,1716889886777,154.95351395,9.999e-05,2]
[328117724,1716889916235,529.1974332,9.999e-05,2]
[328117727,1716890014101,384.33812116,0.00019176,7]
[328117728,1716890134362,192.16906058,0.00019175,7]
[328117729,1716890254297,192.16906057,0.00019078,7]
[328117730,1716890272613,6435.0,0.00028,120]
[328117734,1716890757785,-174.92,0.00029487,120]
[328117735,1716890759258,-166.81157207,0.0001632,2]
[328117736,1716890832651,-25.08,0.00029487,120]
[328117737,1716890832689,-174.92,0.0003,120]
[328117738,1716890832859,-315.27032534,0.0003,120]
[328117739,1716890832906,-200.0,0.00031174,120]
[328117740,1716890832938,-4684.72967466,0.00031778,120]
[328117741,1716890833291,-515.27032534,0.00031778,120]
[328117742,1716890833317,-448.13934932,0.00032,120]
[328117743,1716890833519,-200.0,0.00032,120]
[328117744,1716890833720,-200.0,0.00032,120]
[328117745,1716890849104,-159.99361612,0.00016317,2]
[328117746,1716890888265,273.37336231,9.9e-05,2]
[328117747,1716890896529,205.92461097,9.9e-05,2]
[328117753,1716890969093,-823.85876261,0.00016215,2]
[328117754,1716890969115,-922.22039702,0.00016312,2]
[328117795,1716891031880,-9571.24046118,0.00016309,2]
[328117797,1716891031891,-10521.89740744,0.0001631,2]
[328117799,1716891031901,-30001.41147229,0.00016311,2]
[328117928,1716891037839,-8672.95239,0.00016311,2]
[328117947,1716891041765,-3345.35311385,0.00016311,2]
[328117948,1716891041775,-4347.68221455,0.00016322,2]
[328117961,1716891043526,-5444.69808005,0.00016322,2]
[328117962,1716891043535,-274.92390662,0.000165,2]
[328117963,1716891043544,-163.96667753,0.00016515,2]
[328117964,1716891043554,-24900.0,0.00016615,2]
[328117965,1716891043563,-151.0,0.00016615,2]
[328117966,1716891043573,-1966.031451,0.00016615,2]
[328117967,1716891043583,-1966.031451,0.00016615,2]
[328117968,1716891043593,-151.0,0.00016615,2]
[328117969,1716891043603,-4491.87730238,0.00017,2]
[328117970,1716891043613,-151.0,0.00017836,2]
[328117971,1716891043623,-151.0,0.00017836,2]
[328117972,1716891043632,-151.0,0.00017836,2]
[328117973,1716891043642,-151.0,0.00017836,2]
[328117974,1716891043651,-1407.651507,0.00017836,2]
[328117975,1716891043660,-1407.651507,0.00017836,2]
[328117976,1716891043670,-151.0,0.00017836,2]
[328117977,1716891043680,-153.347263,0.00017836,2]
[328117978,1716891043689,-151.0,0.00017836,2]
[328117979,1716891043700,-153.347263,0.00017836,2]
[328117980,1716891043712,-151.0,0.00017836,2]
[328117981,1716891043724,-151.0,0.00017836,2]
[328117982,1716891043733,-151.0,0.00017836,2]
[328117983,1716891043743,-151.0,0.00017836,2]
[328117984,1716891043752,-151.0,0.00017836,2]
[328117985,1716891043763,-151.0,0.00017836,2]
[328117986,1716891043772,-1558.324968,0.00017836,2]
[328117987,1716891043782,-1558.324968,0.00017836,2]
[328117988,1716891043794,-151.0,0.00017836,2]
[328117989,1716891043805,-1478.089697,0.00017836,2]
[328117990,1716891043814,-1478.089697,0.00017836,2]
[328117991,1716891043824,-151.0,0.00017836,2]
[328117992,1716891043833,-151.0,0.00017836,2]
[328117993,1716891043842,-151.0,0.00017836,2]
[328117994,1716891043852,-172.755439,0.00017836,2]
[328117995,1716891043861,-172.755439,0.00017836,2]
[328117996,1716891043872,-151.0,0.00017897,2]
[328117997,1716891043881,-153.776949,0.00017897,2]
[328117998,1716891043891,-151.0,0.00017897,2]
[328117999,1716891043900,-154.252979,0.00017897,2]
[328118000,1716891043909,-151.0,0.00017897,2]
[328118001,1716891043919,-455.052708,0.00017897,2]
[328118002,1716891043929,-455.052708,0.00017897,2]
[328118003,1716891043938,-455.052708,0.00017897,2]
[328118004,1716891043948,-455.052708,0.00017897,2]
[328118005,1716891043958,-208.098428,0.00017897,2]
[328118006,1716891043967,-392.074662,0.00017897,2]
[328118007,1716891043977,-392.074662,0.00017897,2]
[328118008,1716891043987,-392.074662,0.00017897,2]
[328118009,1716891043996,-392.074662,0.00017897,2]
[328118010,1716891044005,-205.312742,0.00017897,2]
[328118011,1716891044014,-205.312742,0.00017897,2]
[328118012,1716891044024,-205.312742,0.00017897,2]
[328118013,1716891044033,-205.312742,0.00017897,2]
[328118014,1716891044042,-151.0,0.00017897,2]
[328118015,1716891044051,-151.0,0.00017897,2]
[328118016,1716891044061,-173.843064,0.00017897,2]
[328118017,1716891044070,-227.694162,0.00017897,2]
[328118018,1716891044079,-151.0,0.00017897,2]
[328118019,1716891044089,-152.678223,0.00017897,2]
[328118020,1716891044098,-151.0,0.00017897,2]
[328118021,1716891044107,-151.0,0.00017897,2]
[328118022,1716891044118,-151.0,0.00017897,2]
[328118023,1716891044127,-188.120628,0.00017897,2]
[328118024,1716891044136,-1407.651507,0.00017897,2]
[328118025,1716891044145,-1407.651507,0.00017897,2]
[328118026,1716891044154,-1407.651507,0.00017897,2]
[328118027,1716891044164,-1407.651507,0.00017897,2]
[328118028,1716891044174,-151.550225,0.00017897,2]
[328118029,1716891044183,-1966.031451,0.00017897,2]
[328118030,1716891044192,-1966.031451,0.00017897,2]
[328118031,1716891044202,-1966.031451,0.00017897,2]
[328118032,1716891044211,-1966.031451,0.00017897,2]
[328118033,1716891044220,-1966.031451,0.00017897,2]
[328118034,1716891044229,-1966.031451,0.00017897,2]
[328118035,1716891044239,-151.0,0.00017897,2]
[328118036,1716891044247,-151.0,0.00017897,2]
[328118037,1716891044257,-151.0,0.00017897,2]
[328118038,1716891044266,-151.0,0.00017897,2]
[328118039,1716891044275,-151.0,0.00017897,2]
[328118040,1716891044284,-155.149692,0.00017897,2]
[328118041,1716891044294,-153.347263,0.00017897,2]
[328118042,1716891044302,-153.347263,0.00017897,2]
[328118043,1716891044312,-153.347263,0.00017897,2]
[328118044,1716891044321,-153.347263,0.00017897,2]
[328118045,1716891044331,-151.0,0.00017897,2]
[328118046,1716891044341,-151.0,0.00017897,2]
[328118047,1716891044350,-289.554797,0.00017897,2]
[328118048,1716891044359,-153.347263,0.00017897,2]
[328118049,1716891044372,-153.347263,0.00017897,2]
[328118050,1716891044381,-153.347263,0.00017897,2]
[328118051,1716891044390,-153.347263,0.00017897,2]
[328118052,1716891044399,-151.0,0.00017897,2]
[328118053,1716891044408,-151.0,0.00017897,2]
[328118054,1716891044418,-151.0,0.00017897,2]
[328118055,1716891044427,-151.0,0.00017897,2]
[328118056,1716891044435,-151.0,0.00017897,2]
[328118057,1716891044444,-151.0,0.00017897,2]
[328118058,1716891044454,-151.0,0.00017897,2]
[328118059,1716891044463,-151.0,0.00017897,2]
[328118060,1716891044471,-151.0,0.00017897,2]
[328118061,1716891044480,-151.0,0.00017897,2]
[328118062,1716891044490,-151.0,0.00017897,2]
[328118063,1716891044499,-151.0,0.00017897,2]
[328118064,1716891044508,-151.0,0.00017897,2]
[328118065,1716891044517,-151.0,0.00017897,2]
[328118066,1716891044526,-151.0,0.00017897,2]
[328118067,1716891044534,-151.0,0.00017897,2]
[328118068,1716891044543,-151.0,0.00017897,2]
[328118069,1716891044552,-151.0,0.00017897,2]
[328118070,1716891044561,-151.0,0.00017897,2]
[328118071,1716891044570,-151.0,0.00017897,2]
[328118072,1716891044580,-151.0,0.00017897,2]
[328118073,1716891044590,-156.000653,0.00017897,2]
[328118074,1716891044599,-1558.324968,0.00017897,2]
[328118075,1716891044609,-1558.324968,0.00017897,2]
[328118076,1716891044621,-1558.324968,0.00017897,2]
[328118077,1716891044631,-1558.324968,0.00017897,2]
[328118078,1716891044640,-1558.324968,0.00017897,2]
[328118079,1716891044650,-1558.324968,0.00017897,2]
[328118080,1716891044659,-1558.324968,0.00017897,2]
[328118081,1716891044669,-1558.324968,0.00017897,2]
[328118082,1716891044679,-151.0,0.00017897,2]
[328118083,1716891044688,-156.633037,0.00017897,2]
[328118084,1716891044697,-1478.089697,0.00017897,2]
[328118085,1716891044707,-1478.089697,0.00017897,2]
[328118086,1716891044721,-1478.089697,0.00017897,2]
[328118087,1716891044730,-1478.089697,0.00017897,2]
[328118088,1716891044739,-1478.089697,0.00017897,2]
[328118089,1716891044749,-1478.089697,0.00017897,2]
[328118090,1716891044759,-1478.089697,0.00017897,2]
[328118091,1716891044768,-1478.089697,0.00017897,2]
[328118092,1716891044778,-151.0,0.00017897,2]
[328118093,1716891044788,-236.025422,0.00017897,2]
[328118094,1716891044798,-151.0,0.00017897,2]
[328118095,1716891044808,-151.0,0.00017897,2]
[328118096,1716891044818,-151.0,0.00017897,2]
[328118097,1716891044827,-151.0,0.00017897,2]
[328118098,1716891044836,-151.0,0.00017897,2]
[328118099,1716891044846,-151.0,0.00017897,2]
[328118100,1716891044856,-172.755439,0.00017897,2]
[328118101,1716891044866,-172.755439,0.00017897,2]
[328118102,1716891044875,-235.388437,0.00017897,2]
[328118103,1716891044885,-172.755439,0.00017897,2]
[328118104,1716891044894,-172.755439,0.00017897,2]
[328118105,1716891044903,-172.755439,0.00017897,2]
[328118106,1716891044912,-172.755439,0.00017897,2]
[328118107,1716891044922,-172.755439,0.00017897,2]
[328118108,1716891044931,-172.755439,0.00017897,2]
[328118109,1716891044940,-896.7707273,0.00018,2]
[328118110,1716891044950,-503.1,0.0001876,3]
[328118111,1716891044959,-503.1,0.0001876,2]
[328118112,1716891044968,-151.0,0.00018766,2]
[328118113,1716891044978,-1407.651507,0.00018766,2]
[328118114,1716891044987,-1407.651507,0.00018766,2]
[328118115,1716891044996,-10372.13944499,0.00018899,2]
[328118116,1716891045006,-152.637435,0.00018899,2]
[328118117,1716891045016,-151.0,0.00018899,2]
[328118118,1716891045026,-151.156914,0.00018899,2]
[328118119,1716891045035,-455.052708,0.00018899,2]
[328118120,1716891045046,-455.052708,0.00018899,2]
[328118121,1716891045056,-455.052708,0.00018899,2]
[328118122,1716891045065,-455.052708,0.00018899,2]
[328118123,1716891045075,-455.052708,0.00018899,2]
[328118124,1716891045085,-455.052708,0.00018899,2]
[328118125,1716891045095,-392.074662,0.00018899,2]
[328118126,1716891045105,-392.074662,0.00018899,2]
[328118127,1716891045115,-392.074662,0.00018899,2]
[328118128,1716891045124,-392.074662,0.00018899,2]
[328118129,1716891045134,-392.074662,0.00018899,2]
[328118130,1716891045143,-205.312742,0.00018899,2]
[328118131,1716891045152,-392.074662,0.00018899,2]
[328118132,1716891045161,-205.312742,0.00018899,2]
[328118133,1716891045171,-205.312742,0.00018899,2]
[328118134,1716891045180,-205.312742,0.00018899,2]
[328118135,1716891045189,-205.312742,0.00018899,2]
[328118136,1716891045198,-205.312742,0.00018899,2]
[328118137,1716891045207,-151.0,0.00018899,2]
[328118138,1716891045216,-151.0,0.00018899,2]
[328118139,1716891045225,-151.0,0.00018899,2]
[328118140,1716891045234,-151.0,0.00018899,2]
[328118141,1716891045244,-151.0,0.00018899,2]
[328118142,1716891045253,-151.0,0.00018899,2]
[328118143,1716891045263,-151.0,0.00018899,2]
[328118144,1716891045273,-151.0,0.00018899,2]
[328118146,1716891045283,-1407.651507,0.00018899,2]
[328118148,1716891045293,-1407.651507,0.00018899,2]
[328118150,1716891045303,-1407.651507,0.00018899,2]
[328118151,1716891045312,-1407.651507,0.00018899,2]
[328118152,1716891045322,-1407.651507,0.00018899,2]
[328118153,1716891045332,-1407.651507,0.00018899,2]
[328118154,1716891045342,-1407.651507,0.00018899,2]
[328118155,1716891045352,-1407.651507,0.00018899,2]
[328118156,1716891045362,-1407.651507,0.00018899,2]
[328118157,1716891045374,-1407.651507,0.00018899,2]
[328118158,1716891045383,-1966.031451,0.00018899,2]
[328118159,1716891045392,-1966.031451,0.00018899,2]
[328118160,1716891045401,-1966.031451,0.00018899,2]
[328118161,1716891045411,-1966.031451,0.00018899,2]
[328118162,1716891045420,-1966.031451,0.00018899,2]
[328118163,1716891045430,-1966.031451,0.00018899,2]
[328118164,1716891045439,-1966.031451,0.00018899,2]
[328118165,1716891045449,-1966.031451,0.00018899,2]
[328118166,1716891045458,-1966.031451,0.00018899,2]
[328118168,1716891045467,-1966.031451,0.00018899,2]
[328118169,1716891045477,-152.114917,0.00018899,2]
[328118171,1716891045486,-153.347263,0.00018899,2]
[328118172,1716891045495,-153.347263,0.00018899,2]
[328118173,1716891045504,-153.347263,0.00018899,2]
[328118174,1716891045513,-153.347263,0.00018899,2]
[328118175,1716891045522,-153.347263,0.00018899,2]
[328118176,1716891045531,-153.347263,0.00018899,2]
[328118177,1716891045540,-153.347263,0.00018899,2]
[328118178,1716891045549,-153.347263,0.00018899,2]
[328118179,1716891045558,-153.347263,0.00018899,2]
[328118180,1716891045567,-153.347262,0.00018899,2]
[328118181,1716891045576,-159.070173,0.00018899,2]
[328118182,1716891045586,-151.0,0.00018899,2]
[328118183,1716891045596,-265.270841,0.00018899,2]
[328118184,1716891045606,-163.847406,0.00018899,2]
[328118185,1716891045615,-151.0,0.00018899,2]
[328118186,1716891045625,-194.405141,0.00018899,2]
[328118188,1716891045634,-151.0,0.00018899,2]
[328118190,1716891045644,-151.0,0.00018899,2]
[328118192,1716891045653,-151.0,0.00018899,2]
[328118193,1716891045662,-151.0,0.00018899,2]
[328118194,1716891045673,-151.0,0.00018899,2]
[328118195,1716891045683,-1558.324968,0.00018899,2]
[328118196,1716891045692,-1558.324968,0.00018899,2]
[328118197,1716891045702,-1558.324968,0.00018899,2]
[328118198,1716891045716,-1558.324968,0.00018899,2]
[328118199,1716891045725,-1558.324968,0.00018899,2]
[328118200,1716891045735,-1558.324968,0.00018899,2]
[328118201,1716891045747,-1558.324968,0.00018899,2]
[328118202,1716891045757,-1558.324968,0.00018899,2]
[328118203,1716891045767,-1558.324968,0.00018899,2]
[328118205,1716891045776,-1558.324975,0.00018899,2]
[328118207,1716891045786,-1478.089697,0.00018899,2]
[328118209,1716891045797,-1478.089697,0.00018899,2]
[328118210,1716891045807,-1478.089697,0.00018899,2]
[328118211,1716891045817,-1478.089697,0.00018899,2]
[328118212,1716891045827,-1478.089697,0.00018899,2]
[328118213,1716891045837,-1478.089697,0.00018899,2]
[328118214,1716891045848,-1478.089697,0.00018899,2]
[328118215,1716891045857,-1478.089697,0.00018899,2]
[328118216,1716891045870,-1478.089697,0.00018899,2]
[328118217,1716891045881,-1478.089697,0.00018899,2]
[328118218,1716891045891,-151.0,0.00018899,2]
[328118219,1716891045902,-151.0,0.00018899,2]
[328118220,1716891045912,-217.588153,0.00018899,2]
[328118221,1716891045921,-172.755439,0.00018899,2]
[328118222,1716891045931,-172.755439,0.00018899,2]
[328118224,1716891045941,-172.755439,0.00018899,2]
[328118225,1716891045951,-172.755439,0.00018899,2]
[328118226,1716891045961,-172.755439,0.00018899,2]
[328118227,1716891045971,-172.755439,0.00018899,2]
[328118228,1716891045981,-172.755439,0.00018899,2]
[328118229,1716891045991,-172.755439,0.00018899,2]
[328118230,1716891046001,-172.755439,0.00018899,2]
[328118231,1716891046010,-172.755434,0.00018899,2]
[328118232,1716891046020,-823.8587626,0.00018975,2]
[328118233,1716891046030,-1827.23191506,0.00018978,2]
[328118234,1716891046039,-156.866,0.00018992,2]
[328118235,1716891046050,-152.691,0.00018992,2]
[328118236,1716891046060,-172.645,0.00018992,2]
[328118237,1716891046069,-250.0,0.00018992,2]
[328118238,1716891046079,-497.0,0.00018992,2]
[328118239,1716891046088,-497.0,0.00018992,2]
[328118240,1716891046097,-150.0,0.00018992,2]
[328118241,1716891046107,-162.7360072,0.00019,2]
[328118242,1716891046118,-9113.97388,0.00019072,2]
[328118243,1716891046286,-795.70199334,0.00019072,2]
[328118244,1716891046296,-455.052708,0.00019072,2]
[328118245,1716891046306,-455.052708,0.00019072,2]
[328118246,1716891046317,-392.074662,0.00019072,2]
[328118247,1716891046327,-392.074662,0.00019072,2]
[328118248,1716891046337,-392.074662,0.00019072,2]
[328118249,1716891046347,-392.074662,0.00019072,2]
[328118250,1716891046356,-205.312742,0.00019072,2]
[328118251,1716891046367,-205.312742,0.00019072,2]
[328118252,1716891046377,-151.0,0.00019072,2]
[328118253,1716891046387,-290.63342,0.00019072,2]
[328118254,1716891046397,-151.0,0.00019072,2]
[328118255,1716891046407,-1407.651507,0.00019072,2]
[328118256,1716891046416,-1407.651503,0.00019072,2]
[328118257,1716891046432,-1966.031451,0.00019072,2]
[328118258,1716891046448,-1966.031459,0.00019072,2]
[328118259,1716891046459,-455.052708,0.00019075,2]
[328118260,1716891046470,-455.052708,0.00019075,2]
[328118261,1716891046481,-205.312742,0.00019075,2]
[328118262,1716891046491,-205.312742,0.00019075,2]
[328118263,1716891046503,-1501.25329305,0.00019075,2]
[328118264,1716891046514,-155.65603991,0.00019075,2]